Workbook

Sheet Instructions
B2: This template is intended to reconcile the Temporary Supplemental Fee (TSF) Recoupment in year 1. If the company plans to modify the recoupment %, please select "Yes" in question D in the "Input" Tab
B4: Please provide the following information within the "Input" tab:
B5: 0 | C5: This Template is intended for updating Temporary Supplemental Fee (TSF) Recoupment in year 2 for a 2-year recoupment period. If the company has a one year recoupment period, this template is not applicable.
B6: 1 | C6: The company group name in cell E1. If company is not part of a group, please input the company name.
B7: 2 | C7: All relevant company information above table A.
B8: 3 | C8: Complete table A; the "Total" row is calculated automatically.
B9: 4 | C9: Item B, the line of business in cell D25. NOTE: If the company needs to recoup from both personal and commercial lines, the company would need to complete two separate templates. Cell G25 is calculated automatically.
B10: 6 | C10: Complete table D; the "Total" row is calculated automatically.
B11: 7 | C11: Table A, "Total Recoupment Amount" Column is automatically calculated.
B12: 8 | C12: If you have a two year recoupment period, and plan to update the recoupment % for year 2, please select "Two" in D27, and "Yes" in D29
B14: Please provide the following information within the "InputYear2" :
B15: 1 | C15: The two tabs (InputYear2 and CalculationYear2) are intended for updating Temporary Supplemental Fee (TSF) Recoupment in year 2 for a 2-year recoupment period. If the company has a one year recoupment period or the company does not intend to update the recoupment %, this two tabs are not applicable.
B16: 2 | C16: The company group name in cell E1. If company is not part of a group, please input the company name.
B17: 3 | C17: All relevant company information above table A.
B18: 4 | C18: Complete table A; the "Total" row is calculated automatically. "Total Recoupment Amount" colum is also calculated automatically.
B19: 5 | C19: Item B, the line of business in cell D25. NOTE: If the company needs to recoup from both personal and commercial lines, the company would need to complete two separate templates. Cell G25 is calculated automatically.
B20: 6 | C20: Complete table E; the "Total" row is calculated automatically.
B21: 7 | C21: Under "Total Expected Written Premium Next Renewal Cycle", please input expected written premium after accounting for on-leveling and expected mix changes
B22: With regard to the "CalculationYear2" tab:
B23: 8 | C23: NOTE: Everything in the "CalculationYear2" tab is automatically populated.
B24: 9 | C24: Any red fonts are error notifications. Please correct them accordingly.
B25: 10 | C25: The calculated result, recoupment as a percentage of annual WP, is displayed in cell B12 of the "Calculation" tab.

Sheet Input
A1: State of California | D1: Group:
A2: Department of Insurance (CDI)
A4: FAIR PLAN TEMPORARY SUPPLEMENTAL FEE TEMPLATE (Year 2)
A5: GENERAL INFORMATION
A7: Completed by | D7: Date:
A9: Prior TSF Recoup. Company File #: | D9: Effective Date:
A11: A. Input in the Total Assessment by Company and by Line
A12: Company Name | B12: Line of Business | C12: NAIC Group # | D12: NAIC # | E12: Assessment Amount ($) | F12: Recoup % | G12: Amount Recouped in Year 1 ($) | H12: Total Recoupment Amount ($)
H13: =IF(E13*F13=0,"",E13*F13) ->  | I13: =IFERROR(IF(B13="Commercial",INDEX('2024 & 2025 Assessment'!$I$3:$I$308,MATCH(Input!D13,'2024 & 2025 Assessment'!$A$3:$A$308,0))+INDEX('2024 & 2025 Assessment'!$K$3:$K$308,MATCH(Input!D13,'2024 & 2025 Assessment'!$A$3:$A$308,0)),INDEX('2024 & 2025 Assessment'!$J$3:$J$308,MATCH(Input!D13,'2024 & 2025 Assessment'!$A$3:$A$308,0))+INDEX('2024 & 2025 Assessment'!$H$3:$H$308,MATCH(Input!D13,'2024 & 2025 Assessment'!$A$3:$A$308,0))),"") ->  | J13: =IF(IFERROR(ABS(I13-E13)<1000,TRUE),"","Assessment Amount does not match") -> 
I14: =IFERROR(IF(B14="Commercial",INDEX('2024 & 2025 Assessment'!$I$3:$I$308,MATCH(Input!D14,'2024 & 2025 Assessment'!$A$3:$A$308,0))+INDEX('2024 & 2025 Assessment'!$K$3:$K$308,MATCH(Input!D14,'2024 & 2025 Assessment'!$A$3:$A$308,0)),INDEX('2024 & 2025 Assessment'!$J$3:$J$308,MATCH(Input!D14,'2024 & 2025 Assessment'!$A$3:$A$308,0))+INDEX('2024 & 2025 Assessment'!$H$3:$H$308,MATCH(Input!D14,'2024 & 2025 Assessment'!$A$3:$A$308,0))),"") ->  | J14: =IF(IFERROR(ABS(I14-E14)<1000,TRUE),"","Assessment Amount does not match") -> 
I15: =IFERROR(IF(B15="Commercial",INDEX('2024 & 2025 Assessment'!$I$3:$I$308,MATCH(Input!D15,'2024 & 2025 Assessment'!$A$3:$A$308,0))+INDEX('2024 & 2025 Assessment'!$K$3:$K$308,MATCH(Input!D15,'2024 & 2025 Assessment'!$A$3:$A$308,0)),INDEX('2024 & 2025 Assessment'!$J$3:$J$308,MATCH(Input!D15,'2024 & 2025 Assessment'!$A$3:$A$308,0))+INDEX('2024 & 2025 Assessment'!$L$3:$L$308,MATCH(Input!D15,'2024 & 2025 Assessment'!$A$3:$A$308,0))),"") -> 
I16: =IFERROR(IF(B16="Commercial",INDEX('2024 & 2025 Assessment'!$I$3:$I$308,MATCH(Input!D16,'2024 & 2025 Assessment'!$A$3:$A$308,0))+INDEX('2024 & 2025 Assessment'!$K$3:$K$308,MATCH(Input!D16,'2024 & 2025 Assessment'!$A$3:$A$308,0)),INDEX('2024 & 2025 Assessment'!$J$3:$J$308,MATCH(Input!D16,'2024 & 2025 Assessment'!$A$3:$A$308,0))+INDEX('2024 & 2025 Assessment'!$L$3:$L$308,MATCH(Input!D16,'2024 & 2025 Assessment'!$A$3:$A$308,0))),"") -> 
I17: =IFERROR(IF(B17="Commercial",INDEX('2024 & 2025 Assessment'!$I$3:$I$308,MATCH(Input!D17,'2024 & 2025 Assessment'!$A$3:$A$308,0))+INDEX('2024 & 2025 Assessment'!$K$3:$K$308,MATCH(Input!D17,'2024 & 2025 Assessment'!$A$3:$A$308,0)),INDEX('2024 & 2025 Assessment'!$J$3:$J$308,MATCH(Input!D17,'2024 & 2025 Assessment'!$A$3:$A$308,0))+INDEX('2024 & 2025 Assessment'!$L$3:$L$308,MATCH(Input!D17,'2024 & 2025 Assessment'!$A$3:$A$308,0))),"") -> 
I18: =IFERROR(IF(B18="Commercial",INDEX('2024 & 2025 Assessment'!$I$3:$I$308,MATCH(Input!D18,'2024 & 2025 Assessment'!$A$3:$A$308,0))+INDEX('2024 & 2025 Assessment'!$K$3:$K$308,MATCH(Input!D18,'2024 & 2025 Assessment'!$A$3:$A$308,0)),INDEX('2024 & 2025 Assessment'!$J$3:$J$308,MATCH(Input!D18,'2024 & 2025 Assessment'!$A$3:$A$308,0))+INDEX('2024 & 2025 Assessment'!$L$3:$L$308,MATCH(Input!D18,'2024 & 2025 Assessment'!$A$3:$A$308,0))),"") -> 
I19: =IFERROR(IF(B19="Commercial",INDEX('2024 & 2025 Assessment'!$I$3:$I$308,MATCH(Input!D19,'2024 & 2025 Assessment'!$A$3:$A$308,0))+INDEX('2024 & 2025 Assessment'!$K$3:$K$308,MATCH(Input!D19,'2024 & 2025 Assessment'!$A$3:$A$308,0)),INDEX('2024 & 2025 Assessment'!$J$3:$J$308,MATCH(Input!D19,'2024 & 2025 Assessment'!$A$3:$A$308,0))+INDEX('2024 & 2025 Assessment'!$L$3:$L$308,MATCH(Input!D19,'2024 & 2025 Assessment'!$A$3:$A$308,0))),"") -> 
I20: =IFERROR(IF(B20="Commercial",INDEX('2024 & 2025 Assessment'!$I$3:$I$308,MATCH(Input!D20,'2024 & 2025 Assessment'!$A$3:$A$308,0))+INDEX('2024 & 2025 Assessment'!$K$3:$K$308,MATCH(Input!D20,'2024 & 2025 Assessment'!$A$3:$A$308,0)),INDEX('2024 & 2025 Assessment'!$J$3:$J$308,MATCH(Input!D20,'2024 & 2025 Assessment'!$A$3:$A$308,0))+INDEX('2024 & 2025 Assessment'!$L$3:$L$308,MATCH(Input!D20,'2024 & 2025 Assessment'!$A$3:$A$308,0))),"") -> 
I21: =IFERROR(IF(B21="Commercial",INDEX('2024 & 2025 Assessment'!$I$3:$I$308,MATCH(Input!D21,'2024 & 2025 Assessment'!$A$3:$A$308,0))+INDEX('2024 & 2025 Assessment'!$K$3:$K$308,MATCH(Input!D21,'2024 & 2025 Assessment'!$A$3:$A$308,0)),INDEX('2024 & 2025 Assessment'!$J$3:$J$308,MATCH(Input!D21,'2024 & 2025 Assessment'!$A$3:$A$308,0))+INDEX('2024 & 2025 Assessment'!$L$3:$L$308,MATCH(Input!D21,'2024 & 2025 Assessment'!$A$3:$A$308,0))),"") -> 
I22: =IFERROR(IF(B22="Commercial",INDEX('2024 & 2025 Assessment'!$I$3:$I$308,MATCH(Input!D22,'2024 & 2025 Assessment'!$A$3:$A$308,0))+INDEX('2024 & 2025 Assessment'!$K$3:$K$308,MATCH(Input!D22,'2024 & 2025 Assessment'!$A$3:$A$308,0)),INDEX('2024 & 2025 Assessment'!$J$3:$J$308,MATCH(Input!D22,'2024 & 2025 Assessment'!$A$3:$A$308,0))+INDEX('2024 & 2025 Assessment'!$L$3:$L$308,MATCH(Input!D22,'2024 & 2025 Assessment'!$A$3:$A$308,0))),"") -> 
A23: Total | E23: =IFERROR(IF(SUM(E13:E22)=0,"",SUM(E13:E22)),"") ->  | G23: =IFERROR(IF(SUM(G13:G22)=0,"",SUM(G13:G22)),"") ->  | H23: =IFERROR(IF(SUM(H13:H22)=0,"",SUM(H13:H22)),"") -> 
A25: B. What line of business is included in the filing | G25: =IFERROR(SUMIFS($G$13:$G$22,$B$13:$B$22,$D$25),"") -> 0 | H25: =IFERROR(SUMIFS($H$13:$H$22,$B$13:$B$22,$D$25),"") -> 0
A27: C. What is your current recoupment plan, in number of years? | F27: =IF(ISBLANK(D27),"Please input recoupment time frame",IF(H25<G25,"There is an overage on amount recouped, please provide how you plan to refund in section E","")) -> Please input recoupment time frame
A29: C2. (For two year recoupment only) Would you like to update recoupment % in Year 2? | F29: =IF(D29="Yes", "Please proceed forward to tab 'InputYear2'","") -> 
A31: D. Memo
A32: For companies who chose one year recoupment period, if there is over-recoupment, please provide a detailed plan on how and when you plan to provide refunds (no additional recoupment if under-recouped).

Sheet InputYear2 (hidden)
A1: State of California | D1: Group:
A2: Department of Insurance (CDI)
A4: FAIR PLAN TEMPORARY SUPPLEMENTAL FEE TEMPLATE (Year 2)
A5: GENERAL INFORMATION
A7: Completed by | D7: Date:
A9: Prior TSF Recoup. Company File #: | D9: Effective Date:
A11: A. Input in the Total Assessment by Company and by Line
A12: Company Name | B12: Line of Business | C12: NAIC Group # | D12: NAIC # | E12: Assessment Amount ($) | F12: Recoup % | G12: Amount Recouped in Year 1 ($) | H12: Total Recoupment Amount ($)
H13: =IF(E13*F13=0,"",E13*F13) ->  | I13: =IFERROR(IF(B13="Commercial",INDEX('2024 & 2025 Assessment'!$I$3:$I$308,MATCH(InputYear2!D13,'2024 & 2025 Assessment'!$A$3:$A$308,0))+INDEX('2024 & 2025 Assessment'!$K$3:$K$308,MATCH(InputYear2!D13,'2024 & 2025 Assessment'!$A$3:$A$308,0)),INDEX('2024 & 2025 Assessment'!$J$3:$J$308,MATCH(InputYear2!D13,'2024 & 2025 Assessment'!$A$3:$A$308,0))+INDEX('2024 & 2025 Assessment'!$H$3:$H$308,MATCH(InputYear2!D13,'2024 & 2025 Assessment'!$A$3:$A$308,0))),"") ->  | J13: =IF(IFERROR(ABS(I13-E13)<1000,TRUE),"","Assessment does not match") -> 
I14: =IFERROR(IF(B14="Commercial",INDEX('2024 & 2025 Assessment'!$I$3:$I$308,MATCH(InputYear2!D14,'2024 & 2025 Assessment'!$A$3:$A$308,0))+INDEX('2024 & 2025 Assessment'!$K$3:$K$308,MATCH(InputYear2!D14,'2024 & 2025 Assessment'!$A$3:$A$308,0)),INDEX('2024 & 2025 Assessment'!$J$3:$J$308,MATCH(InputYear2!D14,'2024 & 2025 Assessment'!$A$3:$A$308,0))+INDEX('2024 & 2025 Assessment'!$H$3:$H$308,MATCH(InputYear2!D14,'2024 & 2025 Assessment'!$A$3:$A$308,0))),"") -> 
I15: =IFERROR(IF(B15="Commercial",INDEX('2024 & 2025 Assessment'!$I$3:$I$308,MATCH(InputYear2!D15,'2024 & 2025 Assessment'!$A$3:$A$308,0))+INDEX('2024 & 2025 Assessment'!$K$3:$K$308,MATCH(InputYear2!D15,'2024 & 2025 Assessment'!$A$3:$A$308,0)),INDEX('2024 & 2025 Assessment'!$J$3:$J$308,MATCH(InputYear2!D15,'2024 & 2025 Assessment'!$A$3:$A$308,0))+INDEX('2024 & 2025 Assessment'!$L$3:$L$308,MATCH(InputYear2!D15,'2024 & 2025 Assessment'!$A$3:$A$308,0))),"") -> 
I16: =IFERROR(IF(B16="Commercial",INDEX('2024 & 2025 Assessment'!$I$3:$I$308,MATCH(InputYear2!D16,'2024 & 2025 Assessment'!$A$3:$A$308,0))+INDEX('2024 & 2025 Assessment'!$K$3:$K$308,MATCH(InputYear2!D16,'2024 & 2025 Assessment'!$A$3:$A$308,0)),INDEX('2024 & 2025 Assessment'!$J$3:$J$308,MATCH(InputYear2!D16,'2024 & 2025 Assessment'!$A$3:$A$308,0))+INDEX('2024 & 2025 Assessment'!$L$3:$L$308,MATCH(InputYear2!D16,'2024 & 2025 Assessment'!$A$3:$A$308,0))),"") -> 
I17: =IFERROR(IF(B17="Commercial",INDEX('2024 & 2025 Assessment'!$I$3:$I$308,MATCH(InputYear2!D17,'2024 & 2025 Assessment'!$A$3:$A$308,0))+INDEX('2024 & 2025 Assessment'!$K$3:$K$308,MATCH(InputYear2!D17,'2024 & 2025 Assessment'!$A$3:$A$308,0)),INDEX('2024 & 2025 Assessment'!$J$3:$J$308,MATCH(InputYear2!D17,'2024 & 2025 Assessment'!$A$3:$A$308,0))+INDEX('2024 & 2025 Assessment'!$L$3:$L$308,MATCH(InputYear2!D17,'2024 & 2025 Assessment'!$A$3:$A$308,0))),"") -> 
I18: =IFERROR(IF(B18="Commercial",INDEX('2024 & 2025 Assessment'!$I$3:$I$308,MATCH(InputYear2!D18,'2024 & 2025 Assessment'!$A$3:$A$308,0))+INDEX('2024 & 2025 Assessment'!$K$3:$K$308,MATCH(InputYear2!D18,'2024 & 2025 Assessment'!$A$3:$A$308,0)),INDEX('2024 & 2025 Assessment'!$J$3:$J$308,MATCH(InputYear2!D18,'2024 & 2025 Assessment'!$A$3:$A$308,0))+INDEX('2024 & 2025 Assessment'!$L$3:$L$308,MATCH(InputYear2!D18,'2024 & 2025 Assessment'!$A$3:$A$308,0))),"") -> 
I19: =IFERROR(IF(B19="Commercial",INDEX('2024 & 2025 Assessment'!$I$3:$I$308,MATCH(InputYear2!D19,'2024 & 2025 Assessment'!$A$3:$A$308,0))+INDEX('2024 & 2025 Assessment'!$K$3:$K$308,MATCH(InputYear2!D19,'2024 & 2025 Assessment'!$A$3:$A$308,0)),INDEX('2024 & 2025 Assessment'!$J$3:$J$308,MATCH(InputYear2!D19,'2024 & 2025 Assessment'!$A$3:$A$308,0))+INDEX('2024 & 2025 Assessment'!$L$3:$L$308,MATCH(InputYear2!D19,'2024 & 2025 Assessment'!$A$3:$A$308,0))),"") -> 
I20: =IFERROR(IF(B20="Commercial",INDEX('2024 & 2025 Assessment'!$I$3:$I$308,MATCH(InputYear2!D20,'2024 & 2025 Assessment'!$A$3:$A$308,0))+INDEX('2024 & 2025 Assessment'!$K$3:$K$308,MATCH(InputYear2!D20,'2024 & 2025 Assessment'!$A$3:$A$308,0)),INDEX('2024 & 2025 Assessment'!$J$3:$J$308,MATCH(InputYear2!D20,'2024 & 2025 Assessment'!$A$3:$A$308,0))+INDEX('2024 & 2025 Assessment'!$L$3:$L$308,MATCH(InputYear2!D20,'2024 & 2025 Assessment'!$A$3:$A$308,0))),"") -> 
I21: =IFERROR(IF(B21="Commercial",INDEX('2024 & 2025 Assessment'!$I$3:$I$308,MATCH(InputYear2!D21,'2024 & 2025 Assessment'!$A$3:$A$308,0))+INDEX('2024 & 2025 Assessment'!$K$3:$K$308,MATCH(InputYear2!D21,'2024 & 2025 Assessment'!$A$3:$A$308,0)),INDEX('2024 & 2025 Assessment'!$J$3:$J$308,MATCH(InputYear2!D21,'2024 & 2025 Assessment'!$A$3:$A$308,0))+INDEX('2024 & 2025 Assessment'!$L$3:$L$308,MATCH(InputYear2!D21,'2024 & 2025 Assessment'!$A$3:$A$308,0))),"") -> 
I22: =IFERROR(IF(B22="Commercial",INDEX('2024 & 2025 Assessment'!$I$3:$I$308,MATCH(InputYear2!D22,'2024 & 2025 Assessment'!$A$3:$A$308,0))+INDEX('2024 & 2025 Assessment'!$K$3:$K$308,MATCH(InputYear2!D22,'2024 & 2025 Assessment'!$A$3:$A$308,0)),INDEX('2024 & 2025 Assessment'!$J$3:$J$308,MATCH(InputYear2!D22,'2024 & 2025 Assessment'!$A$3:$A$308,0))+INDEX('2024 & 2025 Assessment'!$L$3:$L$308,MATCH(InputYear2!D22,'2024 & 2025 Assessment'!$A$3:$A$308,0))),"") -> 
A23: Total | E23: =IFERROR(IF(SUM(E13:E22)=0,"",SUM(E13:E22)),"") ->  | G23: =IFERROR(IF(SUM(G13:G22)=0,"",SUM(G13:G22)),"") ->  | H23: =IFERROR(IF(SUM(H13:H22)=0,"",SUM(H13:H22)),"") -> 
A25: B. What line of business is included in the filing | G25: =IFERROR(SUMIFS($G$13:$G$22,$B$13:$B$22,$D$25),"") -> 0 | H25: =IFERROR(SUMIFS($H$13:$H$22,$B$13:$B$22,$D$25),"") -> 0
A27: C. What is your current recoupment plan, in number of years? | D27: Two | J27: =IF(ISBLANK(D27),"Please input recoupment time frame","") -> 
A29: D. What is the Recoupment as a % of Total WP for Year 1 from prior template?
A30: (Please include % in input)
A32: E. Recoupment by Coverage/Form/Product
A33: Coverage/Form/Program | B33: Latest Available Annual Written Premium (e.g. 2025) | C33: Total Expected Written Premium Next Renewal Cycle | D33: Total Expected Written Exposure Per Annum Next Renewal Cycle | E33: Percent of Total Premium
E34: =IF(IFERROR(C34/$C$44=0,TRUE),"",C34/$C$44) -> 
E35: =IF(IFERROR(C35/$C$44=0,TRUE),"",C35/$C$44) -> 
A44: Total | B44: =IFERROR(IF(SUM(B34:B43)=0,"",SUM(B34:B43)),"") ->  | C44: =IFERROR(IF(SUM(C34:C43)=0,"",SUM(C34:C43)),"") ->  | D44: =IFERROR(IF(SUM(D34:D43)=0,"",SUM(D34:D43)),"") ->  | E44: =IFERROR(IF(SUM(E34:E43)=0,"",SUM(E34:E43)),"") -> 
A46: F. Please confirm that the Coverage/Form/Program is the same as last template | F46: =IF(D46="No","If answer to Question F is No, please explain in Memo why that is the case","") -> 
A48: G. Memo
A49: Please input any additional comments that you want to share.
A50: For example, if you have selected "Other Coverage", please specify which coverages here.

Sheet 2024 & 2025 Assessment (hidden)
H1: 642400000 | I1: 15700000 | J1: 331400000 | K1: 10500000 | L1: =SUM(H1:K1) -> 1000000000
A2: NAIC # | B2: NAIC Group # | C2: Company Name | D2: 2024 FINAL PARTICIPATION RATE (DWELLING) | E2: 2024 FINAL PARTICIPATION RATE (COMMERCIAL) | F2: 2025 FINAL PARTICIPATION RATE DWELLING | G2: 2025 FINAL PARTICIPATION RATE - COMMERCIAL | H2: 2024 DWELLING ASSESSMENT | I2: 2024 COMMERCIAL ASSESSMENT | J2: 2025 DWELLING ASSESSMENT | K2: 2025 COMMERCIAL ASSESSMENT | L2: Total Assessment
A3: 10048 | B3: 0 | C3: Hyundai Marine & Fire Ins Co Ltd | D3: 5.04e-05 | E3: 0 | F3: 7.75e-05 | G3: 0 | H3: =ROUND(D3*H$1,0) -> 32377 | I3: =ROUND(E3*I$1,0) -> 0 | J3: =ROUND(F3*J$1,0) -> 25684 | K3: =ROUND(G3*K$1,0) -> 0 | L3: =SUM(H3:K3) -> 58061
A4: 10683 | B4: 0 | C4: Wawanesa Gen Ins Co | D4: 0.0031495 | E4: 0 | F4: 0.0033673 | G4: 0 | H4: 2023239 | I4: 0 | J4: 1115923 | K4: 0 | L4: 3139162
A5: 10830 | B5: 0 | C5: Business Alliance Ins Co | D5: 0 | E5: 0.0008946 | F5: 0 | G5: 0.0011729 | H5: 0 | I5: 14045 | J5: 0 | K5: 12315 | L5: 26360
A6: 11118 | B6: 0 | C6: Federated Rural Electric Ins Exch | D6: 6.8e-06 | E6: 0 | F6: 1.38e-05 | G6: 0 | H6: 4368 | I6: 0 | J6: 4573 | K6: 0 | L6: 8941
A7: 11231 | B7: 0 | C7: Generali Us Branch | D7: 0 | E7: 3e-07 | F7: 0 | G7: 0 | H7: 0 | I7: 5 | J7: 0 | K7: 0 | L7: 5
A8: 13528 | B8: 0 | C8: Brotherhood Mut Ins Co | D8: 0 | E8: 0.0058704 | F8: 0 | G8: 0.0063117 | H8: 0 | I8: 92165 | J8: 0 | K8: 66273 | L8: 158438
A9: 27480 | B9: 0 | C9: California Mut Ins Co | D9: 7.45e-05 | E9: 0.0022491 | F9: 0.0001013 | G9: 0.0031665 | H9: 47859 | I9: 35311 | J9: 33571 | K9: 33248 | L9: 149989
A10: 32107 | B10: 0 | C10: Sutter Ins Co | D10: 1e-07 | E10: 0 | F10: 0 | G10: 0 | H10: 64 | I10: 0 | J10: 0 | K10: 0 | L10: 64
A11: 33499 | B11: 0 | C11: Dorinco Reins Co | D11: 2.7e-05 | E11: 0 | F11: 2.71e-05 | G11: 0 | H11: 17345 | I11: 0 | J11: 8981 | K11: 0 | L11: 26326
A12: 37800 | B12: 0 | C12: Kookmin Best Ins Co Ltd | D12: 0 | E12: 0.0011903 | F12: 0 | G12: 0 | H12: 0 | I12: 18688 | J12: 0 | K12: 0 | L12: 18688
A13: 38300 | B13: 0 | C13: Samsung Fire & Marine Ins Co Ltd | D13: 0 | E13: 9.9e-06 | F13: 0 | G13: 5.9e-06 | H13: 0 | I13: 155 | J13: 0 | K13: 62 | L13: 217
A14: 39861 | B14: 0 | C14: Golden Bear Ins Co | D14: 0.0008216 | E14: 0.0032524 | F14: 0.000478 | G14: 0 | H14: 527796 | I14: 51063 | J14: 158409 | K14: 0 | L14: 737268
A15: 40975 | B15: 0 | C15: Dentists Ins Co | D15: 0 | E15: 0.0049781 | F15: 0 | G15: 0.0054364 | H15: 0 | I15: 78156 | J15: 0 | K15: 57082 | L15: 135238
A16: 41459 | B16: 0 | C16: Armed Forces Ins Exch | D16: 0.0002496 | E16: 0 | F16: 0.0002202 | G16: 0 | H16: 160343 | I16: 0 | J16: 72974 | K16: 0 | L16: 233317
A17: 13935 | B17: 7 | C17: Federated Mut Ins Co | D17: 0.0012022 | E17: 0.0012486 | F17: 0.0014129 | G17: 0.0017124 | H17: 772293 | I17: 19603 | J17: 468235 | K17: 17980 | L17: 1278111
A18: 28304 | B18: 7 | C18: Federated Serv Ins Co | D18: 0.00017 | E18: 0 | F18: 0.000198 | G18: 0 | H18: 109208 | I18: 0 | J18: 65617 | K18: 0 | L18: 174825
A19: 10358 | B19: 8 | C19: Encompass Ins Co | D19: 0.0027272 | E19: 0 | F19: 0.0031307 | G19: 0 | H19: 1751953 | I19: 0 | J19: 1037514 | K19: 0 | L19: 2789467
A20: 16217 | B20: 8 | C20: National Farmers Union Prop & Cas | D20: 0 | E20: 0.0001496 | F20: 0 | G20: 1.95e-05 | H20: 0 | I20: 2349 | J20: 0 | K20: 205 | L20: 2554
A21: 19232 | B21: 8 | C21: Allstate Ins Co | D21: 0.038143 | E21: 0.0144403 | F21: 0.0320895 | G21: 0.011592 | H21: =ROUND(D21*H$1,0)+1 -> 24503064 | I21: =ROUND(E21*I$1,0) -> 226713 | J21: =ROUND(F21*J$1,0)+1 -> 10634461 | K21: =ROUND(G21*K$1,0) -> 121716 | L21: 35485954
A22: 19240 | B22: 8 | C22: Allstate Ind Co | D22: 9.22e-05 | E22: 0 | F22: 6.58e-05 | G22: 0 | H22: =ROUND(D22*H$1,0) -> 59229 | I22: 0 | J22: =ROUND(F22*J$1,0) -> 21806 | K22: 0 | L22: 81035
A23: 26905 | B23: 8 | C23: Century Natl Ins Co | D23: 0.001299 | E23: 0 | F23: 0.0008184 | G23: 0 | H23: 834478 | I23: 0 | J23: 271218 | K23: 0 | L23: 1105696
A24: 29742 | B24: 8 | C24: Integon Natl Ins Co | D24: 0.0064044 | E24: 0.0066956 | F24: 0.0049609 | G24: 0.0077038 | H24: 4114187 | I24: 105121 | J24: 1644042 | K24: 80890 | L24: 5944240
A25: 19380 | B25: 12 | C25: American Home Assur Co | D25: 0.0039967 | E25: 2.89e-05 | F25: 0.0040875 | G25: 1.48e-05 | H25: 2567480 | I25: 454 | J25: 1354598 | K25: 155 | L25: 3922687
A26: 19402 | B26: 12 | C26: AIG Prop Cas Co | D26: 0.0015918 | E26: 0 | F26: 0 | G26: 0 | H26: 1022572 | I26: 0 | J26: 0 | K26: 0 | L26: 1022572
A27: 19429 | B27: 12 | C27: Insurance Co Of The State Of PA | D27: 0.000267 | E27: 0.0016647 | F27: 0.0007635 | G27: 0.0016171 | H27: 171521 | I27: 26136 | J27: 253024 | K27: 16980 | L27: 467661
A28: 19445 | B28: 12 | C28: National Union Fire Ins Co of Pittsb | D28: 0 | E28: 0.0116017 | F28: 5.2e-06 | G28: 0.0166877 | H28: 0 | I28: 182147 | J28: 1723 | K28: 175221 | L28: 359091
A29: 23809 | B29: 12 | C29: Granite State Ins Co | D29: 1.68e-05 | E29: 0.0007622 | F29: 2.8e-05 | G29: 0.0004585 | H29: 10792 | I29: 11967 | J29: 9279 | K29: 4814 | L29: 36852
A30: 23841 | B30: 12 | C30: New Hampshire Ins Co | D30: 7.6e-06 | E30: 0.0001548 | F30: 3.8e-06 | G30: 0.0002069 | H30: 4882 | I30: 2430 | J30: 1259 | K30: 2172 | L30: 10743
A31: 26611 | B31: 12 | C31: Blackboard Ins Co | D31: 0 | E31: 0.0006153 | F31: 0 | G31: 0 | H31: 0 | I31: 9660 | J31: 0 | K31: 0 | L31: 9660
A32: 10111 | B32: 19 | C32: American Bankers Ins Co Of FL | D32: 0.0049041 | E32: 0 | F32: 0.0041608 | G32: 0 | H32: 3150394 | I32: 0 | J32: 1378889 | K32: 0 | L32: 4529283
A33: 42978 | B33: 19 | C33: American Security Ins Co | D33: 0.0087987 | E33: 0 | F33: 0.0069047 | G33: 0 | H33: 5652285 | I33: 0 | J33: 2288218 | K33: 0 | L33: 7940503
A34: 42986 | B34: 19 | C34: Standard Guar Ins Co | D34: 4.55e-05 | E34: 0 | F34: 5.99e-05 | G34: 0 | H34: 29229 | I34: 0 | J34: 19851 | K34: 0 | L34: 49080
A35: 19976 | B35: 28 | C35: Amica Mut Ins Co | D35: 0.00456 | E35: 0 | F35: 0.0045827 | G35: 0 | H35: 2929344 | I35: 0 | J35: 1518707 | K35: 0 | L35: 4448051
A36: 10391 | B36: 31 | C36: Berkshire Hathaway Direct Ins Co | D36: 7.61e-05 | E36: 0.0009404 | F36: 0.0002677 | G36: 0.0023992 | H36: 48887 | I36: 14764 | J36: 88716 | K36: 25192 | L36: 177559
A37: 20052 | B37: 31 | C37: National Liab & Fire Ins Co | D37: 0 | E37: 0 | F37: 2.38e-05 | G37: 0 | H37: 0 | I37: 0 | J37: 7887 | K37: 0 | L37: 7887
A38: 22276 | B38: 31 | C38: Berkshire Hathaway Specialty Ins Co | D38: 0 | E38: 0.0004458 | F38: 0 | G38: 0.0005433 | H38: 0 | I38: 6999 | J38: 0 | K38: 5705 | L38: 12704
A39: 22314 | B39: 31 | C39: RSUI Ind Co | D39: 0.0002329 | E39: 0 | F39: 0.0002142 | G39: 0 | H39: 149615 | I39: 0 | J39: 70986 | K39: 0 | L39: 220601
A40: 25895 | B40: 31 | C40: United States Liab Ins Co | D40: 0.0012227 | E40: 0 | F40: 0.0009966 | G40: 0 | H40: 785462 | I40: 0 | J40: 330273 | K40: 0 | L40: 1115735
A41: 35416 | B41: 31 | C41: Us Underwriters Ins Co | D41: 1e-07 | E41: 0 | F41: 1e-07 | G41: 0 | H41: 64 | I41: 0 | J41: 33 | K41: 0 | L41: 97
A42: 42390 | B42: 31 | C42: Amguard Ins Co | D42: 0.0048271 | E42: 0.0175869 | F42: 0.0037598 | G42: 0.0186628 | H42: 3100929 | I42: 276114 | J42: 1245998 | K42: 195959 | L42: 4819000
A43: 20117 | B43: 33 | C43: California Cas Ind Exch | D43: 0.005051 | E43: 0 | F43: 0.0049415 | G43: 0 | H43: 3244762 | I43: 0 | J43: 1637613 | K43: 0 | L43: 4882375
A44: 21415 | B44: 62 | C44: Employers Mut Cas Co | D44: 0.0004418 | E44: 0.001199 | F44: 0.0003375 | G44: 0.0012452 | H44: 283812 | I44: 18824 | J44: 111848 | K44: 13075 | L44: 427559
A45: 10014 | B45: 65 | C45: Affiliated Fm Ins Co | D45: 0.0069971 | E45: 0 | F45: 0.0079829 | G45: 0 | H45: 4494937 | I45: 0 | J45: 2645533 | K45: 0 | L45: 7140470
A46: 21482 | B46: 65 | C46: Factory Mut Ins Co | D46: 0.0152697 | E46: 0 | F46: 0.015411 | G46: 0 | H46: 9809255 | I46: 0 | J46: 5107205 | K46: 0 | L46: 14916460
A47: 10315 | B47: 69 | C47: Civic Prop & Cas Co | D47: 0.0007275 | E47: 0 | F47: 0 | G47: 0 | H47: 467346 | I47: 0 | J47: 0 | K47: 0 | L47: 467346
A48: 10317 | B48: 69 | C48: Neighborhood Spirit Prop & Cas Co | D48: 0.0017326 | E48: 0 | F48: 0 | G48: 0 | H48: 1113022 | I48: 0 | J48: 0 | K48: 0 | L48: 1113022
A49: 10318 | B49: 69 | C49: Exact Prop & Cas Co Inc | D49: 0.0003047 | E49: 0 | F49: 0 | G49: 0 | H49: 195739 | I49: 0 | J49: 0 | K49: 0 | L49: 195739
A50: 11185 | B50: 69 | C50: Foremost Ins Co Grand Rapids MI | D50: 0.0185687 | E50: 0 | F50: 0.0180624 | G50: 0 | H50: 11928533 | I50: 0 | J50: 5985879 | K50: 0 | L50: 17914412
A51: 11800 | B51: 69 | C51: Foremost Prop & Cas Ins Co | D51: 0.0007604 | E51: 0 | F51: 0.001023 | G51: 0 | H51: 488481 | I51: 0 | J51: 339022 | K51: 0 | L51: 827503
A52: 20796 | B52: 69 | C52: 21st Century Premier Ins Co | D52: 5.62e-05 | E52: 0 | F52: 9.08e-05 | G52: 0 | H52: 36103 | I52: 0 | J52: 30091 | K52: 0 | L52: 66194
A53: 21652 | B53: 69 | C53: Farmers Ins Exch | D53: 0.0232096 | E53: 0.0596159 | F53: 0.0379246 | G53: 0.0632196 | H53: 14909847 | I53: 935970 | J53: 12568212 | K53: 663806 | L53: 29077835
A54: 21660 | B54: 69 | C54: Fire Ins Exch | D54: 0.0431227 | E54: 0.051108 | F54: 0.049587 | G54: 0.0685216 | H54: =ROUND(D54*H$1,0)+1 -> 27702023 | I54: 802396 | J54: =ROUND(F54*J$1,0)+1 -> 16433133 | K54: 719477 | L54: 45657029
A55: 21687 | B55: 69 | C55: Mid Century Ins Co | D55: 0.0168873 | E55: 0.0126817 | F55: 0.0185687 | G55: 0.0130075 | H55: =ROUND(D55*H$1,0) -> 10848402 | I55: 199103 | J55: =ROUND(F55*J$1,0) -> 6153667 | K55: 136579 | L55: 17337751
A56: 21709 | B56: 69 | C56: Truck Ins Exch | D56: 0.0001133 | E56: 0.0273798 | F56: 0.0001248 | G56: 0.0279067 | H56: 72784 | I56: 429863 | J56: 41359 | K56: 293020 | L56: 837026
A57: 25321 | B57: 69 | C57: Farmers Direct Prop & Cas Ins Co | D57: 0.0032062 | E57: 0 | F57: 0.0026005 | G57: 0 | H57: 2059663 | I57: 0 | J57: 861806 | K57: 0 | L57: 2921469
A58: 10759 | B58: 71 | C58: Universal N Amer Ins Co | D58: 0.0039634 | E58: 0 | F58: 0.0025891 | G58: 0 | H58: 2546088 | I58: 0 | J58: 858028 | K58: 0 | L58: 3404116
A59: 22012 | B59: 79 | C59: Motors Ins Corp | D59: 0 | E59: 0 | F59: 0.0003105 | G59: 0 | H59: 0 | I59: 0 | J59: 102900 | K59: 0 | L59: 102900
A60: 22101 | B60: 83 | C60: Grange Ins Assn | D60: 0.0011563 | E60: 0.0028608 | F60: 0.0009862 | G60: 0.0029671 | H60: 742807 | I60: 44915 | J60: 326827 | K60: 31155 | L60: 1145704
A61: 16691 | B61: 84 | C61: Great Amer Ins Co | D61: 8.18e-05 | E61: 0.0056797 | F61: 0.0002029 | G61: 0.0054939 | H61: 52548 | I61: 89171 | J61: 67241 | K61: 57686 | L61: 266646
A62: 21172 | B62: 84 | C62: Vanliner Ins Co | D62: 4e-07 | E62: 6.44e-05 | F62: 0 | G62: 7.01e-05 | H62: 257 | I62: 1011 | J62: 0 | K62: 736 | L62: 2004
A63: 22136 | B63: 84 | C63: Great Amer Ins Co of NY | D63: 0 | E63: 0.0037035 | F63: 7e-06 | G63: 0.0021652 | H63: 0 | I63: 58145 | J63: 2320 | K63: 22735 | L63: 83200
A64: 26344 | B64: 84 | C64: Great Amer Assur Co | D64: 1.42e-05 | E64: 0.0044594 | F64: 2.98e-05 | G64: 0.0060277 | H64: 9122 | I64: 70013 | J64: 9876 | K64: 63291 | L64: 152302
A65: 26832 | B65: 84 | C65: Great Amer Alliance Ins Co | D65: 0 | E65: 0.0055902 | F65: 1.03e-05 | G65: 0.0052127 | H65: 0 | I65: 87766 | J65: 3413 | K65: 54733 | L65: 145912
A66: 32620 | B66: 84 | C66: National Interstate Ins Co | D66: 1e-07 | E66: 0.0001837 | F66: 0 | G66: 0.0002024 | H66: 64 | I66: 2884 | J66: 0 | K66: 2125 | L66: 5073
A67: 33723 | B67: 84 | C67: Great Amer Spirit Ins Co | D67: 0 | E67: 2.3e-06 | F67: 0 | G67: 2.5e-06 | H67: 0 | I67: 36 | J67: 0 | K67: 26 | L67: =SUM(H67:K67) -> 62
A68: 10815 | B68: 88 | C68: Verlan Fire Ins Co MD | D68: 0 | E68: 0.0031026 | F68: 0 | G68: 0.0031254 | H68: 0 | I68: 48711 | J68: 0 | K68: 32817 | L68: 81528
A69: 22292 | B69: 88 | C69: Hanover Ins Co | D69: 0 | E69: 0.0078491 | F69: 0 | G69: 0.0069879 | H69: 0 | I69: 123231 | J69: 0 | K69: 73373 | L69: 196604
A70: 22306 | B70: 88 | C70: Massachusetts Bay Ins Co | D70: 0 | E70: 0.0094803 | F70: 0 | G70: 0.0040496 | H70: 0 | I70: 148841 | J70: 0 | K70: 42521 | L70: 191362
A71: 31534 | B71: 88 | C71: Citizens Ins Co Of Amer | D71: 0 | E71: 0.0053548 | F71: 0 | G71: 0.0017682 | H71: 0 | I71: 84070 | J71: 0 | K71: 18566 | L71: 102636
A72: 36064 | B72: 88 | C72: Hanover Amer Ins Co | D72: 0 | E72: 0.0022173 | F72: 0 | G72: 0.0014385 | H72: 0 | I72: 34812 | J72: 0 | K72: 15104 | L72: 49916
A73: 41840 | B73: 88 | C73: Allmerica Fin Benefit Ins Co | D73: 0 | E73: 0 | F73: 0 | G73: 5.3e-06 | H73: 0 | I73: 0 | J73: 0 | K73: 56 | L73: 56
A74: 42552 | B74: 88 | C74: Nova Cas Co | D74: 0 | E74: 0.0026999 | F74: 0 | G74: 0.0026404 | H74: 0 | I74: 42388 | J74: 0 | K74: 27724 | L74: 70112
A75: 11000 | B75: 91 | C75: Sentinel Ins Co Ltd | D75: 0.0010906 | E75: 0.0438004 | F75: 0.0009026 | G75: 0.0403039 | H75: 700601 | I75: 687666 | J75: 299122 | K75: 423191 | L75: 2110580
A76: 19682 | B76: 91 | C76: Hartford Fire Ins Co | D76: 0.0019974 | E76: 0.0133509 | F76: 0.0024047 | G76: 0.0145194 | H76: 1283130 | I76: 209609 | J76: 796918 | K76: 152454 | L76: 2442111
A77: 22357 | B77: 91 | C77: Hartford Accident & Ind Co | D77: 0 | E77: 9.6e-06 | F77: 0 | G77: 1.01e-05 | H77: 0 | I77: 151 | J77: 0 | K77: 106 | L77: 257
A78: 27120 | B78: 91 | C78: Trumbull Ins Co | D78: 0.0022108 | E78: 0 | F78: 0.0014797 | G78: 0 | H78: 1420218 | I78: 0 | J78: 490373 | K78: 0 | L78: 1910591
A79: 29424 | B79: 91 | C79: Hartford Cas Ins Co | D79: 9e-07 | E79: 0.0001516 | F79: 6e-07 | G79: 0.0001544 | H79: 578 | I79: 2380 | J79: 199 | K79: 1621 | L79: 4778
A80: 29459 | B80: 91 | C80: Twin City Fire Ins Co Co | D80: 4.26e-05 | E80: 0 | F80: 2.95e-05 | G80: 3.52e-05 | H80: 27366 | I80: 0 | J80: 9776 | K80: 370 | L80: 37512
A81: 30104 | B81: 91 | C81: Hartford Underwriters Ins Co | D81: 7.49e-05 | E81: 2.71e-05 | F81: 6.24e-05 | G81: 0.0125346 | H81: 48116 | I81: 425 | J81: 20679 | K81: 131613 | L81: 200833
A82: 34690 | B82: 91 | C82: Property & Cas Ins Co Of Hartford | D82: 0.0052807 | E82: 0 | F82: 0.0037315 | G82: 0 | H82: 3392322 | I82: 0 | J82: 1236619 | K82: 0 | L82: 4628941
A83: 37478 | B83: 91 | C83: Hartford Ins Co Of The Midwest | D83: 0 | E83: 2e-06 | F83: 0 | G83: 6.1e-06 | H83: 0 | I83: 31 | J83: 0 | K83: 64 | L83: 95
A84: 42307 | B84: 91 | C84: Navigators Ins Co | D84: 0 | E84: 0.0006056 | F84: 0 | G84: 0.0010579 | H84: 0 | I84: 9508 | J84: 0 | K84: 11108 | L84: 20616
A85: 10749 | B85: 98 | C85: Intrepid Ins Co | D85: 0 | E85: 0.0005269 | F85: 0 | G85: 0.0008214 | H85: 0 | I85: =ROUND(E85*I$1,0) -> 8272 | J85: 0 | K85: =ROUND(G85*K$1,0) -> 8625 | L85: 16897
A86: 25224 | B86: 98 | C86: Great Divide Ins Co | D86: 1e-07 | E86: 0.0003785 | F86: 0 | G86: 0.0003697 | H86: 64 | I86: 5942 | J86: 0 | K86: 3882 | L86: 9888
A87: 29580 | B87: 98 | C87: Berkley Regional Ins Co | D87: 7.3e-06 | E87: 0.0006596 | F87: 8.35e-05 | G87: 0.0005433 | H87: =ROUND(D87*H$1,0) -> 4690 | I87: 10356 | J87: =ROUND(F87*J$1,0) -> 27672 | K87: 5705 | L87: 48423
A88: 32603 | B88: 98 | C88: Berkley Ins Co | D88: 1.2e-06 | E88: 0 | F88: 8e-07 | G88: 0 | H88: 771 | I88: 0 | J88: 265 | K88: 0 | L88: 1036
A89: 36684 | B89: 98 | C89: Riverport Ins Co | D89: 0 | E89: 1.34e-05 | F89: 0 | G89: 3.69e-05 | H89: 0 | I89: 210 | J89: 0 | K89: 387 | L89: 597
A90: 38911 | B90: 98 | C90: Berkley Natl Ins Co | D90: 0.0002007 | E90: 0.0008482 | F90: 0.000274 | G90: 0.0008156 | H90: 128930 | I90: 13317 | J90: 90804 | K90: 8564 | L90: 241615
A91: 40045 | B91: 98 | C91: Starnet Ins Co | D91: 2.7e-06 | E91: 0.0008407 | F91: 8.6e-06 | G91: 0.0006461 | H91: 1734 | I91: 13199 | J91: 2850 | K91: 6784 | L91: 24567
A92: 44318 | B92: 98 | C92: Admiral Ind Co | D92: 0 | E92: 3.35e-05 | F92: 0 | G92: 4.08e-05 | H92: 0 | I92: 526 | J92: 0 | K92: 428 | L92: 954
A93: 21458 | B93: 111 | C93: Employers Ins Co of Wausau | D93: 0.0029166 | E93: 0 | F93: 0.0029543 | G93: 0 | H93: 1873624 | I93: 0 | J93: 979055 | K93: 0 | L93: 2852679
A94: 23035 | B94: 111 | C94: Liberty Mut Fire Ins Co | D94: 0.0036258 | E94: 0.0011961 | F94: 0.0033538 | G94: 0.0025692 | H94: 2329214 | I94: 18779 | J94: 1111449 | K94: 26977 | L94: 3486419
A95: 23043 | B95: 111 | C95: Liberty Mut Ins Co | D95: 0.0026305 | E95: 0.0005301 | F95: 0.0029587 | G95: 0.0003247 | H95: 1689833 | I95: 8323 | J95: 980513 | K95: 3409 | L95: 2682078
A96: 24066 | B96: 111 | C96: American Fire & Cas Co | D96: 0 | E96: 0.0023132 | F96: 0 | G96: 0.0018927 | H96: 0 | I96: 36317 | J96: 0 | K96: 19873 | L96: 56190
A97: 24074 | B97: 111 | C97: Ohio Cas Ins Co | D97: 8.57e-05 | E97: 0.0054592 | F97: 6.96e-05 | G97: 0.0043975 | H97: 55054 | I97: 85709 | J97: 23065 | K97: 46174 | L97: 210002
A98: 24082 | B98: 111 | C98: Ohio Security Ins Co | D98: 0.000484 | E98: 0.0316456 | F98: 0.0004054 | G98: 0.0259171 | H98: 310922 | I98: 496836 | J98: 134350 | K98: 272130 | L98: 1214238
A99: 24724 | B99: 111 | C99: First Natl Ins Co Of Amer | D99: 0.0055581 | E99: 0 | F99: 0.0051629 | G99: 0 | H99: 3570523 | I99: 0 | J99: 1710985 | K99: 0 | L99: 5281508
A100: 24732 | B100: 111 | C100: General Ins Co Of Amer | D100: 0.0227594 | E100: 0 | F100: 0.0234377 | G100: 0 | H100: 14620639 | I100: 0 | J100: 7767254 | K100: 0 | L100: 22387893
A101: 24740 | B101: 111 | C101: Safeco Ins Co Of Amer | D101: 0.0230018 | E101: 0.000962 | F101: 0.0224947 | G101: 0.00131 | H101: 14776356 | I101: 15103 | J101: 7454744 | K101: 13755 | L101: 22259958
A102: 39012 | B102: 111 | C102: Safeco Ins Co Of IL | D102: 0.0064589 | E102: 0 | F102: 0.0065031 | G102: 0 | H102: 4149197 | I102: 0 | J102: 2155127 | K102: 0 | L102: 6304324
A103: 42404 | B103: 111 | C103: Liberty Ins Corp | D103: 0.0208221 | E103: 0 | F103: 0.0207977 | G103: 0 | H103: 13376117 | I103: 0 | J103: 6892358 | K103: 0 | L103: 20268475
A104: 44393 | B104: 111 | C104: West Amer Ins Co | D104: 0.000343 | E104: 0.0172475 | F104: 0.0003177 | G104: 0.0157664 | H104: 220343 | I104: 270786 | J104: 105286 | K104: 165547 | L104: 761962
A105: 23396 | B105: 124 | C105: Amerisure Mut Ins Co | D105: 3.2e-06 | E105: 5.8e-06 | F105: 2.8e-06 | G105: 8.9e-06 | H105: 2056 | I105: 91 | J105: 928 | K105: 93 | L105: 3168
A106: 11991 | B106: 140 | C106: National Cas Co | D106: 0.0005761 | E106: 3e-07 | F106: 0.000545 | G106: 3.6e-06 | H106: 370087 | I106: 5 | J106: 180613 | K106: 38 | L106: 550743
A107: 15580 | B107: 140 | C107: Scottsdale Ind Co | D107: 5.58e-05 | E107: 0.0009223 | F107: 5e-05 | G107: 0.0006257 | H107: 35846 | I107: 14480 | J107: 16570 | K107: 6570 | L107: 73466
A108: 18961 | B108: 140 | C108: Crestbrook Ins Co | D108: 0.0030518 | E108: 0.0017023 | F108: 0.0026393 | G108: 0.0013472 | H108: 1960476 | I108: 26726 | J108: 874664 | K108: 14146 | L108: 2876012
A109: 19100 | B109: 140 | C109: Amco Ins Co | D109: 0.0021202 | E109: 0.0307927 | F109: 1.7e-05 | G109: 0.0151214 | H109: 1362016 | I109: 483445 | J109: 5634 | K109: 158775 | L109: 2009870
A110: 23760 | B110: 140 | C110: Nationwide Gen Ins Co | D110: 0 | E110: 0 | F110: 1.39e-05 | G110: 0.0009247 | H110: 0 | I110: 0 | J110: 4606 | K110: 9709 | L110: 14315
A111: 23779 | B111: 140 | C111: Nationwide Mut Fire Ins Co | D111: 1.1e-06 | E111: 0 | F111: 0 | G111: 0 | H111: 707 | I111: 0 | J111: 0 | K111: 0 | L111: 707
A112: 23787 | B112: 140 | C112: Nationwide Mut Ins Co | D112: 0.0254788 | E112: 0.0185929 | F112: 0.0253394 | G112: 0.0152278 | H112: 16367581 | I112: 291909 | J112: 8397477 | K112: 159892 | L112: 25216859
A113: 25453 | B113: 140 | C113: Nationwide Ins Co Of Amer | D113: 0.0001329 | E113: 0.0017286 | F113: 2.15e-05 | G113: 0.0010492 | H113: 85375 | I113: 27139 | J113: 7125 | K113: 11017 | L113: 130656
A114: 28223 | B114: 140 | C114: Nationwide Agribusiness Ins Co | D114: 0.0004725 | E114: 0.0266581 | F114: 0.0005842 | G114: 0.0222461 | H114: 303534 | I114: 418532 | J114: 193604 | K114: 233584 | L114: 1149254
A115: 42579 | B115: 140 | C115: Allied Prop & Cas Ins Co | D115: 0.0004647 | E115: 0 | F115: 0 | G115: 0 | H115: 298523 | I115: 0 | J115: 0 | K115: 0 | L115: 298523
A116: 12262 | B116: 150 | C116: Pennsylvania Manufacturers Assoc Ins | D116: 0 | E116: 0.0011964 | F116: 0 | G116: 0.0012397 | H116: 0 | I116: 18783 | J116: 0 | K116: 13017 | L116: 31800
A117: 20095 | B117: 150 | C117: BITCO Gen Ins Corp | D117: 5e-07 | E117: 4.4e-06 | F117: 1e-06 | G117: 8.9e-06 | H117: 321 | I117: 69 | J117: 331 | K117: 93 | L117: 814
A118: 20109 | B118: 150 | C118: BITCO Natl Ins Co | D118: 1.6e-06 | E118: 0 | F118: 0 | G118: 1.1e-06 | H118: 1028 | I118: 0 | J118: 0 | K118: 12 | L118: 1040
A119: 36897 | B119: 150 | C119: Manufacturers Alliance Ins Co | D119: 0 | E119: 0.0006024 | F119: 0 | G119: 0.0004719 | H119: =ROUND(D119*H$1,0) -> 0 | I119: 9458 | J119: =ROUND(F119*J$1,0) -> 0 | K119: 4955 | L119: 14413
A120: 41424 | B120: 150 | C120: Pennsylvania Manufacturers Ind Co | D120: 0 | E120: 5.13e-05 | F120: 0 | G120: 1.87e-05 | H120: 0 | I120: 805 | J120: 0 | K120: 196 | L120: 1001
A121: 14042 | B121: 155 | C121: ASI Select Ins Corp | D121: 0.0057365 | E121: 0 | F121: 0.0046116 | G121: 0 | H121: 3685128 | I121: 0 | J121: 1528284 | K121: 0 | L121: 5213412
A122: 10936 | B122: 158 | C122: Seneca Ins Co Inc | D122: 0.0005097 | E122: 0.0028457 | F122: 0.0005912 | G122: 0.0030157 | H122: 327431 | I122: 44677 | J122: 195924 | K122: 31665 | L122: 599697
A123: 13269 | B123: 158 | C123: Zenith Ins Co | D123: 0 | E123: 0.0137347 | F123: 0 | G123: 0.0135031 | H123: 0 | I123: 215635 | J123: 0 | K123: 141783 | L123: 357418
A124: 16624 | B124: 158 | C124: Allied World Specialty Ins Co | D124: 0 | E124: 0.0006296 | F124: 0 | G124: 0.0002396 | H124: 0 | I124: 9885 | J124: 0 | K124: 2516 | L124: 12401
A125: 19489 | B125: 158 | C125: Allied World Assur Co US Inc | D125: 0 | E125: 5.22e-05 | F125: 0 | G125: 0 | H125: 0 | I125: 820 | J125: 0 | K125: 0 | L125: 820
A126: 21105 | B126: 158 | C126: North River Ins Co | D126: 0.0002996 | E126: 7.6e-06 | F126: 0.0002595 | G126: 4.8e-05 | H126: 192463 | I126: 119 | J126: 85998 | K126: 504 | L126: 279084
A127: 21113 | B127: 158 | C127: United States Fire Ins Co | D127: 6.7e-05 | E127: 0.0004216 | F127: 7.1e-06 | G127: 0.0008451 | H127: 43041 | I127: 6619 | J127: 2353 | K127: 8874 | L127: 60887
A128: 22730 | B128: 158 | C128: Allied World Ins Co | D128: 0 | E128: 6.4e-06 | F128: 0 | G128: 0 | H128: 0 | I128: 100 | J128: 0 | K128: 0 | L128: 100
A129: 25054 | B129: 158 | C129: Hudson Ins Co | D129: 1.6e-05 | E129: 0.0019446 | F129: 1.63e-05 | G129: 0.0020024 | H129: 10278 | I129: 30530 | J129: 5402 | K129: 21025 | L129: 67235
A130: 44768 | B130: 158 | C130: Vantapro Specialty Ins Co | D130: 0 | E130: 0.0002152 | F130: 0 | G130: 0.0001404 | H130: 0 | I130: 3379 | J130: 0 | K130: 1474 | L130: 4853
A131: 18031 | B131: 161 | C131: Topa Ins Co | D131: 0 | E131: 0.0029235 | F131: 0 | G131: 0.0013678 | H131: 0 | I131: 45899 | J131: 0 | K131: 14362 | L131: =SUM(H131:K131) -> 60261
A132: 13978 | B132: 169 | C132: Florists Mut Ins Co | D132: 0.0005138 | E132: 0 | F132: 0.0004901 | G132: 0 | H132: 330065 | I132: 0 | J132: 162419 | K132: 0 | L132: 492484
A133: 21180 | B133: 169 | C133: Sentry Select Ins Co | D133: 0.0001683 | E133: 0 | F133: 0.0001731 | G133: 0 | H133: 108116 | I133: 0 | J133: 57365 | K133: 0 | L133: 165481
A134: 23434 | B134: 169 | C134: Middlesex Ins Co | D134: 0.000722 | E134: 0 | F134: 0.0008236 | G134: 0 | H134: 463813 | I134: 0 | J134: 272941 | K134: 0 | L134: 736754
A135: 24988 | B135: 169 | C135: Sentry Ins Co | D135: 0.0006209 | E135: 0 | F135: 0.0006387 | G135: 0 | H135: 398866 | I135: 0 | J135: 211665 | K135: 0 | L135: 610531
A136: 25151 | B136: 176 | C136: State Farm Gen Ins Co | D136: 0.1679738 | E136: 0.0928699 | F136: 0.1662028 | G136: 0.0932524 | H136: =ROUND(D136*H$1,0)+1 -> 107906370 | I136: 1458057 | J136: 55079608 | K136: 979150 | L136: 165423185
A137: 29700 | B137: 181 | C137: Swiss Re Corp Solutions Elite Ins Co | D137: 0.0020209 | E137: 9.97e-05 | F137: 0.0022617 | G137: 0.0001206 | H137: =ROUND(D137*H$1,0) -> 1298226 | I137: 1565 | J137: 749527 | K137: 1266 | L137: 2050584
A138: 29874 | B138: 181 | C138: Swiss Re Corp Solutions Amer Ins Co | D138: 3.02e-05 | E138: 0 | F138: 5.47e-05 | G138: 0 | H138: 19400 | I138: 0 | J138: 18128 | K138: 0 | L138: 37528
A139: 39845 | B139: 181 | C139: Westport Ins Corp | D139: 8.37e-05 | E139: 0 | F139: 5.8e-06 | G139: 0 | H139: 53769 | I139: 0 | J139: 1922 | K139: 0 | L139: 55691
A140: 18600 | B140: 200 | C140: USAA Gen Ind Co | D140: 0.0081846 | E140: 0 | F140: 0.0086804 | G140: 0 | H140: 5257787 | I140: 0 | J140: 2876685 | K140: 0 | L140: 8134472
A141: 21253 | B141: 200 | C141: Garrison Prop & Cas Ins Co | D141: 0.0056461 | E141: 0 | F141: 0.0063594 | G141: 0 | H141: 3627055 | I141: 0 | J141: 2107505 | K141: 0 | L141: 5734560
A142: 25941 | B142: 200 | C142: United Serv Automobile Assn | D142: 0.0236696 | E142: 0 | F142: 0.0228123 | G142: 0 | H142: 15205351 | I142: 0 | J142: 7559996 | K142: 0 | L142: 22765347
A143: 25968 | B143: 200 | C143: USAA Cas Ins Co | D143: 0.0211432 | E143: 0 | F143: 0.0198468 | G143: 0 | H143: 13582392 | I143: 0 | J143: 6577230 | K143: 0 | L143: 20159622
A144: 25976 | B144: 201 | C144: Utica Mut Ins Co | D144: 0 | E144: 1.63e-05 | F144: 0 | G144: 2.18e-05 | H144: 0 | I144: 256 | J144: 0 | K144: 229 | L144: 485
A145: 25984 | B145: 201 | C145: Graphic Arts Mut Ins Co | D145: 0 | E145: 2.9e-06 | F145: 0 | G145: 3.1e-06 | H145: 0 | I145: 46 | J145: 0 | K145: 33 | L145: 79
A146: 16535 | B146: 212 | C146: Zurich Amer Ins Co | D146: 0.0123348 | E146: 0.0052846 | F146: 0.0143328 | G146: 0.0077814 | H146: 7923876 | I146: 82968 | J146: 4749890 | K146: 81705 | L146: 12838439
A147: 21326 | B147: 212 | C147: Empire Fire & Marine Ins Co | D147: 1.9e-06 | E147: 0 | F147: 1.5e-06 | G147: 0 | H147: 1221 | I147: 0 | J147: 497 | K147: 0 | L147: 1718
A148: 26247 | B148: 212 | C148: American Guar & Liab Ins | D148: 0.0020922 | E148: 0.0012766 | F148: 0.0009973 | G148: 0.0026064 | H148: 1344029 | I148: 20043 | J148: 330505 | K148: 27367 | L148: 1721944
A149: 27855 | B149: 212 | C149: Zurich Amer Ins Co Of IL | D149: 6.2e-06 | E149: 5.8e-06 | F149: 2.72e-05 | G149: 5.9e-06 | H149: 3983 | I149: =ROUND(E149*I$1,0) -> 91 | J149: 9014 | K149: =ROUND(G149*K$1,0) -> 62 | L149: 13150
A150: 39306 | B150: 212 | C150: Fidelity & Deposit Co Of MD | D150: 0.0001011 | E150: 0.0024258 | F150: 0.0002375 | G150: 0.0022844 | H150: 64947 | I150: 38085 | J150: 78708 | K150: 23986 | L150: 205726
A151: 40142 | B151: 212 | C151: American Zurich Ins Co | D151: 2.2e-05 | E151: 0.0005491 | F151: 6.54e-05 | G151: 0.0006179 | H151: 14133 | I151: 8621 | J151: =ROUND(F151*J$1,0) -> 21674 | K151: 6488 | L151: 50916
A152: 10914 | B152: 215 | C152: Kemper Independence Ins Co | D152: 0.0033995 | E152: 0 | F152: 0.0025084 | G152: 0 | H152: 2183839 | I152: 0 | J152: 831284 | K152: 0 | L152: 3015123
A153: 10915 | B153: 215 | C153: Unitrin Direct Prop & Cas Co | D153: 5.2e-06 | E153: 0 | F153: 4e-06 | G153: 0 | H153: 3340 | I153: 0 | J153: 1326 | K153: 0 | L153: 4666
A154: 11142 | B154: 215 | C154: United Cas Ins Co Of Amer | D154: 6.27e-05 | E154: 0 | F154: 5.23e-05 | G154: 0 | H154: 40278 | I154: 0 | J154: 17332 | K154: 0 | L154: 57610
A155: 16063 | B155: 215 | C155: Unitrin Auto & Home Ins Co | D155: 0.0009331 | E155: 0 | F155: 0.00059 | G155: 0 | H155: 599423 | I155: 0 | J155: 195526 | K155: 0 | L155: 794949
A156: 31968 | B156: 215 | C156: Merastar Ins Co | D156: 1.37e-05 | E156: 0 | F156: 1.12e-05 | G156: 0 | H156: 8801 | I156: 0 | J156: 3712 | K156: 0 | L156: 12513
A157: 20427 | B157: 218 | C157: American Cas Co Of Reading PA | D157: 2.18e-05 | E157: 0.0015043 | F157: 8.81e-05 | G157: 0.0025692 | H157: 14004 | I157: 23618 | J157: 29196 | K157: 26977 | L157: 93795
A158: 20443 | B158: 218 | C158: Continental Cas Co | D158: 0.0009354 | E158: 0.0079235 | F158: 0.0011886 | G158: 0.0031718 | H158: 600901 | I158: 124399 | J158: 393902 | K158: 33304 | L158: 1152506
A159: 20478 | B159: 218 | C159: National Fire Ins Co Of Hartford | D159: 5.1e-06 | E159: 0.0029544 | F159: 2.58e-05 | G159: 0.003145 | H159: 3276 | I159: 46384 | J159: 8550 | K159: 33023 | L159: 91233
A160: 20494 | B160: 218 | C160: Transportation Ins Co | D160: 5.4e-06 | E160: 0.0019983 | F160: 3.32e-05 | G160: 0.0012687 | H160: 3469 | I160: 31373 | J160: 11002 | K160: 13321 | L160: 59165
A161: 20508 | B161: 218 | C161: Valley Forge Ins Co | D161: 0 | E161: 0.0042765 | F161: 5.13e-05 | G161: 0.0020519 | H161: 0 | I161: 67141 | J161: 17001 | K161: 21545 | L161: 105687
A162: 35289 | B162: 218 | C162: Continental Ins Co | D162: 0.0001351 | E162: 0.0035723 | F162: 6.57e-05 | G162: 0.0039745 | H162: 86788 | I162: 56085 | J162: 21773 | K162: 41732 | L162: 206378
A163: 23248 | B163: 225 | C163: Occidental Fire & Cas Co Of NC | D163: 0.0008275 | E163: 0 | F163: 1.34e-05 | G163: 0 | H163: 531586 | I163: 0 | J163: 4441 | K163: 0 | L163: 536027
A164: 28886 | B164: 225 | C164: Transguard Ins Co Of Amer Inc | D164: 3.74e-05 | E164: 0 | F164: 3.43e-05 | G164: 1.17e-05 | H164: 24026 | I164: 0 | J164: 11367 | K164: 123 | L164: 35516
A165: 36560 | B165: 225 | C165: SafePort Ins Co | D165: 0 | E165: 0 | F165: 0.0004214 | G165: 0 | H165: 0 | I165: 0 | J165: 139652 | K165: 0 | L165: 139652
A166: 10677 | B166: 244 | C166: The Cincinnati Ins Co | D166: 0.0030481 | E166: 0.000207 | F166: 0.0028007 | G166: 0.0001971 | H166: 1958099 | I166: 3250 | J166: 928152 | K166: 2070 | L166: 2891571
A167: 23280 | B167: 244 | C167: The Cincinnati Ind Co | D167: 2e-07 | E167: 0 | F167: 5e-07 | G167: 2.96e-05 | H167: 128 | I167: 0 | J167: 166 | K167: 311 | L167: 605
A168: 28665 | B168: 244 | C168: The Cincinnati Cas Co | D168: 1.1e-06 | E168: 3.2e-06 | F168: 1.5e-06 | G168: 4.2e-06 | H168: 707 | I168: 50 | J168: 497 | K168: 44 | L168: 1298
A169: 14974 | B169: 246 | C169: Pennsylvania Lumbermens Mut Ins | D169: 0.0010124 | E169: 0 | F169: 0.0011594 | G169: 0 | H169: =ROUND(D169*H$1,0) -> 650366 | I169: 0 | J169: 384225 | K169: 0 | L169: 1034591
A170: 13021 | B170: 248 | C170: United Fire & Cas Co | D170: 0.0005381 | E170: 0 | F170: 0.0007215 | G170: 2.23e-05 | H170: 345675 | I170: 0 | J170: 239105 | K170: 234 | L170: 585014
A171: 31453 | B171: 248 | C171: Financial Pacific Ins Co | D171: 0.0001425 | E171: 0.0004007 | F171: 0.0001375 | G171: 0.0004487 | H171: 91542 | I171: 6291 | J171: 45568 | K171: 4711 | L171: 148112
A172: 16608 | B172: 256 | C172: New York Marine & Gen Ins Co | D172: 3.4e-06 | E172: 0.0006575 | F172: 1.5e-06 | G172: 0.0006279 | H172: 2184 | I172: 10323 | J172: 497 | K172: 6593 | L172: 19597
A173: 12890 | B173: 280 | C173: Eagle W Ins Co | D173: 0.000269 | E173: 0 | F173: 0.0002446 | G173: 2.21e-05 | H173: 172806 | I173: 0 | J173: 81060 | K173: 232 | L173: 254098
A174: 13544 | B174: 280 | C174: California Capital Ins Co | D174: 0.0056206 | E174: 0.0276592 | F174: 0.0057253 | G174: 0.0308545 | H174: 3610673 | I174: 434249 | J174: 1897364 | K174: 323972 | L174: 6266258
A175: 23540 | B175: 280 | C175: Monterey Ins Co | D175: 0 | E175: 0.0029323 | F175: 0 | G175: 0.0039122 | H175: 0 | I175: 46037 | J175: 0 | K175: 41078 | L175: 87115
A176: 22578 | B176: 300 | C176: Horace Mann Ins Co | D176: 0.0015039 | E176: 0 | F176: 0.0016648 | G176: 0 | H176: 966105 | I176: 0 | J176: 551715 | K176: 0 | L176: 1517820
A177: 22756 | B177: 300 | C177: Horace Mann Prop & Cas Ins Co | D177: 0.0004592 | E177: 0 | F177: 0.0004804 | G177: 0 | H177: 294990 | I177: 0 | J177: 159205 | K177: 0 | L177: 454195
A178: 14559 | B178: 303 | C178: GuideOne Specialty Ins Co | D178: 1.1e-06 | E178: 0.0006984 | F178: 1e-07 | G178: 0.0002393 | H178: 707 | I178: 10965 | J178: 33 | K178: 2513 | L178: 14218
A179: 15032 | B179: 303 | C179: GuideOne Ins Co | D179: 9e-07 | E179: 0.0031658 | F179: 0 | G179: 0.0043857 | H179: 578 | I179: 49703 | J179: 0 | K179: 46050 | L179: 96331
A180: 10847 | B180: 306 | C180: Cumis Ins Society Inc | D180: 6.8e-06 | E180: 0.0007345 | F180: 9.9e-06 | G180: 0.0007689 | H180: 4368 | I180: 11532 | J180: 3281 | K180: 8073 | L180: 27254
A181: 10004 | B181: 313 | C181: Seaview Ins Co | D181: 0.0023425 | E181: 0 | F181: 0.0033429 | G181: 0 | H181: 1504822 | I181: 0 | J181: 1107837 | K181: 0 | L181: 2612659
A182: 33898 | B182: 313 | C182: Aegis Security Ins Co | D182: 0.0002285 | E182: 0 | F182: 0.0017405 | G182: 0 | H182: 146788 | I182: 0 | J182: 576802 | K182: 0 | L182: 723590
A183: 10693 | B183: 323 | C183: Civil Serv Employees Ins Co | D183: 0.0017312 | E183: 0 | F183: 0.0015016 | G183: 0 | H183: 1112123 | I183: 0 | J183: =ROUND(F183*J$1,0) -> 497630 | K183: 0 | L183: 1609753
A184: 18953 | B184: 323 | C184: CSE Safeguard Ins Co | D184: 0.0040874 | E184: 0 | F184: 0.0038228 | G184: 0 | H184: 2625746 | I184: 0 | J184: 1266876 | K184: 0 | L184: 3892622
A185: 21261 | B185: 350 | C185: Electric Ins Co | D185: 0.000184 | E185: 0 | F185: 0.0001702 | G185: 0 | H185: 118202 | I185: 0 | J185: 56404 | K185: 0 | L185: 174606
A186: 11452 | B186: 361 | C186: Hartford Steam Boil Inspec & Ins Co | D186: 0 | E186: 3.2e-06 | F186: 0 | G186: 1.7e-06 | H186: 0 | I186: 50 | J186: 0 | K186: 18 | L186: 68
A187: 19720 | B187: 361 | C187: American Alt Ins Corp | D187: 2.2e-06 | E187: 0.0025398 | F187: 0.0001078 | G187: 0.0026053 | H187: 1413 | I187: 39875 | J187: 35725 | K187: 27356 | L187: 104369
A188: 23450 | B188: 361 | C188: American Family Home Ins Co | D188: 0 | E188: 0.0001907 | F188: 0 | G188: 0.0001427 | H188: 0 | I188: 2994 | J188: 0 | K188: 1498 | L188: 4492
A189: 23469 | B189: 361 | C189: American Modern Home Ins Co | D189: 0.0012989 | E189: 0.000307 | F189: 0.000467 | G189: 0 | H189: 834413 | I189: 4820 | J189: 154764 | K189: 0 | L189: 993997
A190: 41998 | B190: 361 | C190: American Southern Home Ins Co | D190: 1e-07 | E190: 0.0006631 | F190: 1.72e-05 | G190: 0.0007698 | H190: 64 | I190: 10411 | J190: 5700 | K190: 8083 | L190: 24258
A191: 42722 | B191: 361 | C191: American Modern Prop & Cas Ins Co | D191: 0.0071284 | E191: 0 | F191: 0.008094 | G191: 0 | H191: 4579284 | I191: 0 | J191: 2682352 | K191: 0 | L191: 7261636
A192: 19801 | B192: 408 | C192: Argonaut Ins Co | D192: 0 | E192: 0.0002035 | F192: 0 | G192: 0.0001081 | H192: 0 | I192: 3195 | J192: 0 | K192: 1135 | L192: 4330
A193: 28401 | B193: 408 | C193: American Natl Prop & Cas Co | D193: 0.0045898 | E193: 0.001712 | F193: 0.003572 | G193: 0.0009926 | H193: 2948488 | I193: 26878 | J193: 1183761 | K193: 10422 | L193: 4169549
A194: 36927 | B194: 408 | C194: Colony Specialty Ins Co | D194: 1.23e-05 | E194: 0 | F194: 1.68e-05 | G194: 0 | H194: 7902 | I194: 0 | J194: 5568 | K194: 0 | L194: 13470
A195: 23876 | B195: 411 | C195: Mapfre Ins Co | D195: 0.0009189 | E195: 0 | F195: 0.0009243 | G195: 0 | H195: 590301 | I195: 0 | J195: 306313 | K195: 0 | L195: =SUM(H195:K195) -> 896614
A196: 11005 | B196: 473 | C196: Homesite Ins Co Of CA | D196: 0.0078861 | E196: 0 | F196: 0.0070438 | G196: 0 | H196: 5066031 | I196: 0 | J196: 2334315 | K196: 0 | L196: 7400346
A197: 13927 | B197: 473 | C197: Homesite Ins Co Of The Midwest | D197: 0.007029 | E197: 0 | F197: 0.0089758 | G197: 0 | H197: 4515430 | I197: 0 | J197: 2974580 | K197: 0 | L197: 7490010
A198: 27138 | B198: 473 | C198: Midvale Ind Co | D198: 0 | E198: 0.00054 | F198: 0 | G198: 0.0018852 | H198: 0 | I198: 8478 | J198: 0 | K198: 19795 | L198: 28273
A199: 29068 | B199: 473 | C199: American Family Connect Prop & Cas I | D199: 0.009268 | E199: 0 | F199: 0.0084974 | G199: 0 | H199: 5953763 | I199: 0 | J199: 2816038 | K199: 0 | L199: 8769801
A200: 12254 | B200: 517 | C200: Glencar Ins Co | D200: 0 | E200: 0 | F200: 0 | G200: 1.4e-06 | H200: 0 | I200: 0 | J200: 0 | K200: 15 | L200: 15
... 121 more rows

Sheet CalculationYear2 (hidden)
A1: State of California | D1: Group | I1: =InputYear2!$G$1 -> 0
A2: Department of Insurance (CDI) | D2: Line: | I2: =InputYear2!D25 -> 0
A4: FAIR PLAN RECOUPMENT ASSESSMENT TEMPLATE (Year 2)
A5: GENERAL INFORMATION
A7: Total Recoupment Amount | B7: =InputYear2!H25 -> 0
A8: Recouped Amount in Year 1 | B8: =InputYear2!G25 -> 0
A9: Remaining Recoupment Amount | B9: =B7-B8 -> 0
A10: Total Written Premium Next Renewal Cycle | B10: =InputYear2!C44 -> 
A11: Annual Recoupment as a % of Total WP Next Renewal Cycle | B11: =IFERROR(IF(B10=0,"",B9/B10),"") -> 
A12: Selected Recoupment as a % of Total WP | B12: =B11 -> 
A14: ="Calculation of Recoupment Assessment as a Percent of Written Premium Based on "&InputYear2!D27&" Collection Period" -> Calculation of Recoupment Assessment as a Percent of Written Premium Based on Two Collection Period
A15: Line of Business | B15: Total premium | C15: Average Premium | D15: Average Recoupment | E15: Percent Annual Assessment | F15: LOB
A16: =IF(ISBLANK(InputYear2!A34),"",InputYear2!A34) ->  | B16: =IF(ISBLANK(InputYear2!C34),"",InputYear2!C34) ->  | C16: =IFERROR(InputYear2!C34/InputYear2!D34,"") ->  | D16: =IFERROR(C16*$B$12,"") ->  | E16: =IFERROR(D16/C16,"") ->  | F16: =IFERROR(INDEX(Keys!$C$2:$C$23,MATCH(CalculationYear2!A16,Keys!$B$2:$B$24,0)),"") -> 
A17: =IF(ISBLANK(InputYear2!A35),"",InputYear2!A35) ->  | B17: =IF(ISBLANK(InputYear2!C35),"",InputYear2!C35) ->  | C17: =IFERROR(InputYear2!C35/InputYear2!D35,"") ->  | D17: =IFERROR(C17*$B$12,"") ->  | E17: =IFERROR(D17/C17,"") ->  | F17: =IFERROR(INDEX(Keys!$C$2:$C$23,MATCH(CalculationYear2!A17,Keys!$B$2:$B$24,0)),"") -> 
A18: =IF(ISBLANK(InputYear2!A36),"",InputYear2!A36) ->  | B18: =IF(ISBLANK(InputYear2!C36),"",InputYear2!C36) ->  | C18: =IFERROR(InputYear2!C36/InputYear2!D36,"") ->  | D18: =IFERROR(C18*$B$12,"") ->  | F18: =IFERROR(INDEX(Keys!$C$2:$C$23,MATCH(CalculationYear2!A18,Keys!$B$2:$B$24,0)),"") -> 
A19: =IF(ISBLANK(InputYear2!A37),"",InputYear2!A37) ->  | B19: =IF(ISBLANK(InputYear2!C37),"",InputYear2!C37) ->  | C19: =IFERROR(InputYear2!C37/InputYear2!D37,"") ->  | D19: =IFERROR(C19*$B$12,"") ->  | F19: =IFERROR(INDEX(Keys!$C$2:$C$23,MATCH(CalculationYear2!A19,Keys!$B$2:$B$24,0)),"") -> 
A20: =IF(ISBLANK(InputYear2!A38),"",InputYear2!A38) ->  | B20: =IF(ISBLANK(InputYear2!C38),"",InputYear2!C38) ->  | C20: =IFERROR(InputYear2!C38/InputYear2!D38,"") ->  | F20: =IFERROR(INDEX(Keys!$C$2:$C$23,MATCH(CalculationYear2!A20,Keys!$B$2:$B$24,0)),"") -> 
A21: =IF(ISBLANK(InputYear2!A39),"",InputYear2!A39) ->  | B21: =IF(ISBLANK(InputYear2!C39),"",InputYear2!C39) ->  | C21: =IFERROR(InputYear2!C39/InputYear2!D39,"") ->  | F21: =IFERROR(INDEX(Keys!$C$2:$C$23,MATCH(CalculationYear2!A21,Keys!$B$2:$B$24,0)),"") -> 
A22: =IF(ISBLANK(InputYear2!A40),"",InputYear2!A40) ->  | B22: =IF(ISBLANK(InputYear2!C40),"",InputYear2!C40) ->  | C22: =IFERROR(InputYear2!C40/InputYear2!D40,"") ->  | F22: =IFERROR(INDEX(Keys!$C$2:$C$23,MATCH(CalculationYear2!A22,Keys!$B$2:$B$24,0)),"") -> 
A23: =IF(ISBLANK(InputYear2!A41),"",InputYear2!A41) ->  | B23: =IF(ISBLANK(InputYear2!C41),"",InputYear2!C41) ->  | C23: =IFERROR(InputYear2!C41/InputYear2!D41,"") ->  | F23: =IFERROR(INDEX(Keys!$C$2:$C$23,MATCH(CalculationYear2!A23,Keys!$B$2:$B$24,0)),"") -> 
A24: =IF(ISBLANK(InputYear2!A42),"",InputYear2!A42) ->  | B24: =IF(ISBLANK(InputYear2!C42),"",InputYear2!C42) ->  | C24: =IFERROR(InputYear2!C42/InputYear2!D42,"") ->  | F24: =IFERROR(INDEX(Keys!$C$2:$C$23,MATCH(CalculationYear2!A24,Keys!$B$2:$B$24,0)),"") -> 
A25: =IF(ISBLANK(InputYear2!A43),"",InputYear2!A43) ->  | B25: =IF(ISBLANK(InputYear2!C43),"",InputYear2!C43) ->  | C25: =IFERROR(InputYear2!C43/InputYear2!D43,"") ->  | F25: =IFERROR(INDEX(Keys!$C$2:$C$23,MATCH(CalculationYear2!A25,Keys!$B$2:$B$24,0)),"") -> 
A26: Total | B26: =SUM(B16:B25) -> 0 | C26: =IFERROR(InputYear2!C44/InputYear2!D44,"") -> 
A28: Annual Recoupment by Line of Business
A29: Line of Business | B29: Year 2 Recoupment
A30: Homeowner | B30: =IFERROR(SUMIFS($B$16:$B$25,$F$16:$F$25,A30)*$B$12,"") -> 
A31: Fire and Allied | B31: =IFERROR(SUMIFS($B$16:$B$25,$F$16:$F$25,A31)*$B$12,"") -> 
A32: Farmowners
A33: CMP - Property
A34: CMP - Liability
A35: Other
A36: Total | B36: =SUM(B30:B35) -> 0 | C36: =IF(CalculationYear2!B36=(InputYear2!H25-InputYear2!G25),"","Recoupment amount does not match with input figures") -> 
A38: Total Assessment Amount Allocated to Lines of Business
A39: Line of Business | B39: Written Premium | C39: Allocated Assessment
A40: Homeowner | B40: =SUMIFS($B$16:$B$25,$F$16:$F$25,A40) -> 0 | C40: =IFERROR(B40*$B$11,"") -> 
A41: Fire and Allied | B41: 0
A42: Farmowners | B42: 0
A43: CMP - Property | B43: 0
A44: CMP - Liability | B44: 0
A45: Other | B45: 0
A46: Total | B46: =SUM(B40:B45) -> 0 | C46: =SUM(C40:C45) -> 0 | D46: =IF(C46=(InputYear2!H25-InputYear2!G25),"","Recoupment amount does not match with input figures") -> 

Sheet Keys (hidden)
A1: POLICY_TYPE | B1: Key | F1: Personal | G1: Commercial | L1: Personal
A2: DO | B2: Dwelling Owner-Occupied (Non-Seasonal) | C2: Fire and Allied | F2: Dwelling Owner-Occupied (Non-Seasonal) | G2: Farmowners | L2: Commercial
A3: DS | B3: Dwelling Owner-Occupied (Seasonal) | C3: Fire and Allied | F3: Dwelling Owner-Occupied (Seasonal) | G3: Commercial Multi-Peril - Property Line
A4: DT | B4: Dwelling Tenant-Occupied | C4: Fire and Allied | F4: Dwelling Tenant-Occupied | G4: Commercial Multi-Peril - Liability Line
A5: DC | B5: Dwelling Contents-Only | C5: Fire and Allied | F5: Dwelling Contents-Only | G5: Commercial Fire and Allied
A6: FP | B6: Force-Placed Occupied | C6: Other | F6: Force-Placed Occupied | G6: Other Coverage
A7: FX | B7: Force-Placed Vacant | C7: Other | F7: Force-Placed Vacant
A8: XX | B8: Vacant | C8: Other | F8: Vacant
A9: 1 | B9: HO-1 | C9: Homeowner | F9: HO-1
A10: 2 | B10: HO-2 | C10: Homeowner | F10: HO-2
A11: 3 | B11: HO-3 | C11: Homeowner | F11: HO-3
A12: 4 | B12: HO-4 | C12: Homeowner | F12: HO-4
A13: 5 | B13: HO-5 | C13: Homeowner | F13: HO-5
A14: 6 | B14: HO-6 | C14: Homeowner | F14: HO-6
A15: R6 | B15: HO-6 (Tenant-Occupied) | C15: Homeowner | F15: HO-6 (Tenant-Occupied)
A16: 7 | B16: HO-7 | C16: Homeowner | F16: HO-7
A17: R7 | B17: HO-7 (Tenant-Occupied) | C17: Homeowner | F17: HO-7 (Tenant-Occupied)
A18: 8 | B18: HO-8 | C18: Homeowner | F18: HO-8
B19: Farmowners | C19: Farmowners | F19: Other Fire and Allied
B20: Commercial Multi-Peril - Property Line | C20: CMP - Property | F20: Other Coverage
B21: Commercial Multi-Peril - Liability Line | C21: CMP - Liability
B22: Other Coverage | C22: Other
B23: Commercial Fire and Allied | C23: Fire and Allied
B24: Other Fire and Allied | C24: Fire and Allied
A27: One
A28: Two
A30: Yes
A31: No
